[Event "*** Titled Tuesday Blitz"]
[Site "Chess.com"]
[Date "2020.04.14"]
[Round "6"]
[White "Shield12"]
[Black "PIwan"]
[Result "1-0"]
[WhiteElo "2862"]
[BlackElo "2553"]
[TimeControl "180+1"]
[EndTime "11:03:21 PDT"]
[Termination "Shield12 won by resignation"]

1. e4 {[%clk 0:03:00.9]} 1... e6 {[%clk 0:03:00]} 2. d4 {[%clk 0:03:01]} 2... d5
{[%clk 0:03:00.5]} 3. Nc3 {[%clk 0:03:01.2]} 3... Nf6 {[%clk 0:03:00.3]} 4. Bg5
{[%clk 0:03:00.2]} 4... Bb4 {[%clk 0:03:00.1]} 5. exd5 {[%clk 0:02:58.9]} 5...
Qxd5 {[%clk 0:02:54.4]} 6. Nf3 {[%clk 0:02:53.9]} 6... Ne4 {[%clk 0:02:42.5]} 7.
Bd2 {[%clk 0:02:53.5]} 7... Bxc3 {[%clk 0:02:28.8]} 8. bxc3 {[%clk 0:02:53.3]}
8... Nxd2 {[%clk 0:02:26.4]} 9. Qxd2 {[%clk 0:02:53.5]} 9... b6 {[%clk
0:02:24.7]} 10. Bd3 {[%clk 0:02:48.9]} 10... Bb7 {[%clk 0:02:17.4]} 11. O-O
{[%clk 0:02:48.8]} 11... Nd7 {[%clk 0:02:13.7]} 12. Rfe1 {[%clk 0:02:48.5]}
12... Nf6 {[%clk 0:02:13.1]} 13. Qf4 {[%clk 0:02:43.8]} 13... O-O {[%clk
0:02:06]} 14. c4 {[%clk 0:02:30.1]} 14... Qd6 {[%clk 0:02:03.1]} 15. Ne5 {[%clk
0:02:29]} 15... Rad8 {[%clk 0:01:57.5]} 16. c3 {[%clk 0:02:22.1]} 16... c5
{[%clk 0:01:29.7]} 17. Rad1 {[%clk 0:02:20.6]} 17... cxd4 {[%clk 0:01:25.2]} 18.
cxd4 {[%clk 0:02:20.5]} 18... b5 {[%clk 0:01:24.1]} 19. cxb5 {[%clk 0:02:08.8]}
19... Qd5 {[%clk 0:01:24.2]} 20. Bf1 {[%clk 0:02:06.5]} 20... Qxa2 {[%clk
0:01:20.7]} 21. Ra1 {[%clk 0:02:06.2]} 21... Qb2 {[%clk 0:01:11.4]} 22. Rxa7
{[%clk 0:02:04.5]} 22... Rxd4 {[%clk 0:01:08.7]} 23. Qc1 {[%clk 0:02:04.3]}
23... Qxc1 {[%clk 0:00:26.3]} 24. Rxc1 {[%clk 0:02:05.2]} 24... Bd5 {[%clk
0:00:18.8]} 25. Nc6 {[%clk 0:02:04.6]} 25... Rd2 {[%clk 0:00:16.8]} 26. b6
{[%clk 0:02:03.9]} 26... Rb2 {[%clk 0:00:15.7]} 27. b7 {[%clk 0:02:00.5]} 27...
Bxc6 {[%clk 0:00:11.8]} 28. Rxc6 {[%clk 0:01:57.6]} 28... Nd7 {[%clk 0:00:12.3]}
29. g3 {[%clk 0:01:33.3]} 29... g6 {[%clk 0:00:11.5]} 30. Rc7 {[%clk 0:01:27.7]}
30... Nb8 {[%clk 0:00:10.9]} 31. h4 {[%clk 0:01:24.5]} 31... Kg7 {[%clk
0:00:10.5]} 32. Bg2 {[%clk 0:01:24.5]} 32... Rd8 {[%clk 0:00:09.6]} 33. Rc8
{[%clk 0:01:18.7]} 33... Rd1+ {[%clk 0:00:09.1]} 34. Kh2 {[%clk 0:01:02.9]}
34... Nd7 {[%clk 0:00:08.8]} 35. Rd8 {[%clk 0:00:59.8]} 35... Ne5 {[%clk
0:00:08.9]} 36. Rxd1 {[%clk 0:00:59.1]} 36... Ng4+ {[%clk 0:00:09.1]} 37. Kg1
{[%clk 0:00:45.6]} 1-0

[Event "*** Titled Tuesday Blitz"]
[Site "Chess.com"]
[Date "2020.04.14"]
[Round "6"]
[White "Usurpov"]
[Black "flavicol64"]
[Result "1-0"]
[WhiteElo "2423"]
[BlackElo "2273"]
[TimeControl "180+1"]
[EndTime "11:03:22 PDT"]
[Termination "Usurpov won by checkmate"]

1. e4 {[%clk 0:03:00.9]} 1... c5 {[%clk 0:02:59.3]} 2. Nf3 {[%clk 0:03:00.8]}
2... Nc6 {[%clk 0:02:59.6]} 3. d4 {[%clk 0:03:00.5]} 3... cxd4 {[%clk
0:03:00.5]} 4. Nxd4 {[%clk 0:03:01.1]} 4... e6 {[%clk 0:03:01.4]} 5. Nc3 {[%clk
0:03:00.8]} 5... Nf6 {[%clk 0:03:01.1]} 6. Ndb5 {[%clk 0:02:59]} 6... d6 {[%clk
0:03:01]} 7. Bf4 {[%clk 0:02:59]} 7... e5 {[%clk 0:03:01.5]} 8. Bg5 {[%clk
0:02:59.3]} 8... a6 {[%clk 0:03:01.9]} 9. Na3 {[%clk 0:02:59.5]} 9... b5 {[%clk
0:03:00.4]} 10. Nd5 {[%clk 0:02:59.4]} 10... Be7 {[%clk 0:03:00.5]} 11. Bxf6
{[%clk 0:02:58.2]} 11... Bxf6 {[%clk 0:03:00.5]} 12. c4 {[%clk 0:02:58.8]} 12...
b4 {[%clk 0:03:00.1]} 13. Nc2 {[%clk 0:02:59.1]} 13... Rb8 {[%clk 0:03:00.7]}
14. g3 {[%clk 0:02:58]} 14... O-O {[%clk 0:02:59.5]} 15. h4 {[%clk 0:02:57.7]}
15... g6 {[%clk 0:02:33.6]} 16. Qd3 {[%clk 0:02:35.2]} 16... Bg7 {[%clk
0:02:16.2]} 17. h5 {[%clk 0:02:16.2]} 17... Be6 {[%clk 0:02:12.3]} 18. Bh3
{[%clk 0:02:11.9]} 18... Nd4 {[%clk 0:02:09.2]} 19. Nxd4 {[%clk 0:01:34.3]}
19... exd4 {[%clk 0:01:53.9]} 20. Nf4 {[%clk 0:01:24]} 20... Bxh3 {[%clk
0:00:59.5]} 21. Rxh3 {[%clk 0:01:24.9]} 21... g5 {[%clk 0:01:00.2]} 22. h6
{[%clk 0:01:16.4]} 22... Be5 {[%clk 0:00:55.4]} 23. Nd5 {[%clk 0:01:08.8]} 23...
Qe8 {[%clk 0:00:38.9]} 24. f4 {[%clk 0:01:02.7]} 24... Bh8 {[%clk 0:00:30.9]}
25. fxg5 {[%clk 0:00:29.6]} 25... Qe5 {[%clk 0:00:27.3]} 26. Rh4 {[%clk
0:00:27.9]} 26... Qxg5 {[%clk 0:00:22.6]} 27. Rg4 {[%clk 0:00:25.6]} 27... f6
{[%clk 0:00:17.3]} 28. Rxg5+ {[%clk 0:00:22.8]} 28... fxg5 {[%clk 0:00:18.2]}
29. Ke2 {[%clk 0:00:21.2]} 29... Be5 {[%clk 0:00:18.1]} 30. Rf1 {[%clk
0:00:20.2]} 30... Rxf1 {[%clk 0:00:16.9]} 31. Kxf1 {[%clk 0:00:21.1]} 31... Rf8+
{[%clk 0:00:15.9]} 32. Kg2 {[%clk 0:00:21.3]} 32... a5 {[%clk 0:00:16.8]} 33.
Qd2 {[%clk 0:00:20.5]} 33... g4 {[%clk 0:00:16.1]} 34. Qg5+ {[%clk 0:00:20.4]}
34... Kf7 {[%clk 0:00:17]} 35. Qf5+ {[%clk 0:00:19.5]} 35... Ke8 {[%clk
0:00:16.9]} 36. Qe6+ {[%clk 0:00:20]} 36... Kd8 {[%clk 0:00:17.8]} 37. Qe7+
{[%clk 0:00:20.6]} 37... Kc8 {[%clk 0:00:18.7]} 38. Qc7# {[%clk 0:00:21.5]} 1-0

[Event "*** Titled Tuesday Blitz"]
[Site "Chess.com"]
[Date "2020.04.14"]
[Round "6"]
[White "Savagelittlemole"]
[Black "Harsha_Bharathakoti"]
[Result "0-1"]
[WhiteElo "2612"]
[BlackElo "2804"]
[TimeControl "180+1"]
[EndTime "11:03:23 PDT"]
[Termination "Harsha_Bharathakoti won by resignation"]

1. e4 {[%clk 0:03:00.9]} 1... c5 {[%clk 0:02:59.5]} 2. Ne2 {[%clk 0:02:59.5]}
2... Nc6 {[%clk 0:02:59]} 3. d4 {[%clk 0:02:57.8]} 3... cxd4 {[%clk 0:02:59.9]}
4. Nxd4 {[%clk 0:02:58.4]} 4... Nf6 {[%clk 0:03:00.7]} 5. Nc3 {[%clk 0:02:58.6]}
5... d6 {[%clk 0:03:01.3]} 6. Bg5 {[%clk 0:02:58.2]} 6... e6 {[%clk 0:03:01.6]}
7. Qd2 {[%clk 0:02:58.4]} 7... a6 {[%clk 0:03:01.9]} 8. O-O-O {[%clk 0:02:58.7]}
8... Bd7 {[%clk 0:03:02.4]} 9. Kb1 {[%clk 0:02:58.7]} 9... h6 {[%clk 0:02:45.3]}
10. Bxf6 {[%clk 0:02:57.1]} 10... Qxf6 {[%clk 0:02:45.3]} 11. Nxc6 {[%clk
0:02:56.2]} 11... Bxc6 {[%clk 0:02:41.7]} 12. f4 {[%clk 0:02:56.2]} 12... b5
{[%clk 0:02:08.2]} 13. Qe3 {[%clk 0:02:44.7]} 13... g5 {[%clk 0:01:51]} 14. g3
{[%clk 0:02:36.6]} 14... Bg7 {[%clk 0:01:49.4]} 15. a3 {[%clk 0:02:30.5]} 15...
Qe7 {[%clk 0:01:41.6]} 16. Bg2 {[%clk 0:02:26]} 16... Rb8 {[%clk 0:01:33]} 17.
Rhe1 {[%clk 0:01:54]} 17... O-O {[%clk 0:00:55.2]} 18. Qd3 {[%clk 0:01:41.8]}
18... b4 {[%clk 0:00:52.8]} 19. axb4 {[%clk 0:01:28]} 19... Rxb4 {[%clk
0:00:53.7]} 20. b3 {[%clk 0:01:28.2]} 20... Qb7 {[%clk 0:00:46.5]} 21. Na2
{[%clk 0:01:17.9]} 21... Rb6 {[%clk 0:00:36.9]} 22. Re3 {[%clk 0:00:56]} 22...
a5 {[%clk 0:00:28.5]} 23. fxg5 {[%clk 0:00:56.1]} 23... hxg5 {[%clk 0:00:28.3]}
24. Bh3 {[%clk 0:00:27.5]} 24... a4 {[%clk 0:00:27.2]} 25. Qc4 {[%clk
0:00:27.5]} 25... axb3 {[%clk 0:00:20.9]} 26. Rxb3 {[%clk 0:00:28.4]} 26... Bxe4
{[%clk 0:00:20.9]} 27. Kc1 {[%clk 0:00:20.6]} 27... d5 {[%clk 0:00:15.9]} 28.
Rxb6 {[%clk 0:00:17]} 28... Qxb6 {[%clk 0:00:16.2]} 29. Qb3 {[%clk 0:00:17.2]}
29... Qf2 {[%clk 0:00:15]} 30. Nc3 {[%clk 0:00:13.6]} 30... Qe3+ {[%clk
0:00:13.4]} 31. Kb2 {[%clk 0:00:11.8]} 31... Bxc3+ {[%clk 0:00:14]} 32. Qxc3
{[%clk 0:00:11.9]} 32... Rb8+ {[%clk 0:00:14.6]} 0-1

[Event "*** Titled Tuesday Blitz"]
[Site "Chess.com"]
[Date "2020.04.14"]
[Round "6"]
[White "Disturbed01"]
[Black "kagg1125"]
[Result "1-0"]
[WhiteElo "2684"]
[BlackElo "2513"]
[TimeControl "180+1"]
[EndTime "11:03:23 PDT"]
[Termination "Disturbed01 won by resignation"]

1. d4 {[%clk 0:03:00.9]} 1... Nf6 {[%clk 0:02:59.4]} 2. c4 {[%clk 0:03:01]} 2...
g6 {[%clk 0:02:58.5]} 3. Nc3 {[%clk 0:03:01.3]} 3... d5 {[%clk 0:02:57.8]} 4.
cxd5 {[%clk 0:03:00.6]} 4... Nxd5 {[%clk 0:02:58.7]} 5. e4 {[%clk 0:03:01.2]}
5... Nxc3 {[%clk 0:02:59]} 6. bxc3 {[%clk 0:03:02.1]} 6... Bg7 {[%clk
0:02:59.9]} 7. Bc4 {[%clk 0:03:02.5]} 7... c5 {[%clk 0:03:00.3]} 8. Ne2 {[%clk
0:03:03]} 8... Nc6 {[%clk 0:03:00.8]} 9. Be3 {[%clk 0:03:01.6]} 9... O-O {[%clk
0:03:00.9]} 10. O-O {[%clk 0:03:01.3]} 10... Qc7 {[%clk 0:03:01.3]} 11. Rc1
{[%clk 0:02:59.9]} 11... b6 {[%clk 0:02:58.5]} 12. h4 {[%clk 0:02:45.4]} 12...
Rd8 {[%clk 0:02:29]} 13. h5 {[%clk 0:02:36.3]} 13... Na5 {[%clk 0:02:09.3]} 14.
Bd5 {[%clk 0:02:34.8]} 14... Bb7 {[%clk 0:02:05.1]} 15. hxg6 {[%clk 0:02:34.3]}
15... hxg6 {[%clk 0:02:04.2]} 16. Nf4 {[%clk 0:02:29.5]} 16... e6 {[%clk
0:01:56.9]} 17. Bxb7 {[%clk 0:02:29.3]} 17... Nxb7 {[%clk 0:01:57.8]} 18. Qf3
{[%clk 0:02:25.2]} 18... Nd6 {[%clk 0:01:54.1]} 19. d5 {[%clk 0:02:16.8]} 19...
e5 {[%clk 0:01:28.5]} 20. Nh3 {[%clk 0:02:08.6]} 20... f6 {[%clk 0:01:08.6]} 21.
g3 {[%clk 0:02:05.5]} 21... f5 {[%clk 0:00:57]} 22. Ng5 {[%clk 0:02:03.2]} 22...
Re8 {[%clk 0:00:57]} 23. exf5 {[%clk 0:01:58.9]} 23... gxf5 {[%clk 0:00:47.1]}
24. Ne6 {[%clk 0:01:58.7]} 24... Qf7 {[%clk 0:00:45.2]} 25. Kg2 {[%clk 0:01:54]}
25... f4 {[%clk 0:00:42.1]} 26. gxf4 {[%clk 0:01:51]} 26... e4 {[%clk
0:00:41.6]} 27. Qg4 {[%clk 0:01:45.3]} 27... Nf5 {[%clk 0:00:41.2]} 28. Rh1
{[%clk 0:01:44.4]} 28... Rxe6 {[%clk 0:00:41.4]} 29. dxe6 {[%clk 0:01:43.7]}
29... Qxe6 {[%clk 0:00:42.3]} 30. Qg5 {[%clk 0:01:24.7]} 30... Rf8 {[%clk
0:00:24.8]} 31. Rh3 {[%clk 0:01:20.1]} 31... Rf6 {[%clk 0:00:24.6]} 32. Kh2
{[%clk 0:00:35.3]} 32... Kf7 {[%clk 0:00:15.2]} 33. Qh5+ {[%clk 0:00:35]} 33...
Ke7 {[%clk 0:00:15]} 34. Rg1 {[%clk 0:00:34.8]} 34... Rh6 {[%clk 0:00:14.9]} 35.
Rxg7+ {[%clk 0:00:34]} 35... Nxg7 {[%clk 0:00:15.8]} 36. Qxh6 {[%clk 0:00:34.5]}
1-0

[Event "*** Titled Tuesday Blitz"]
[Site "Chess.com"]
[Date "2020.04.14"]
[Round "6"]
[White "Guachiney"]
[Black "Leonid_Starozhilov"]
[Result "1-0"]
[WhiteElo "2842"]
[BlackElo "2666"]
[TimeControl "180+1"]
[EndTime "11:03:25 PDT"]
[Termination "Guachiney won by resignation"]

1. e4 {[%clk 0:03:00.9]} 1... g6 {[%clk 0:02:58.6]} 2. d4 {[%clk 0:03:00.6]}
2... Bg7 {[%clk 0:02:59.2]} 3. Nc3 {[%clk 0:03:01.1]} 3... d6 {[%clk 0:02:59.9]}
4. Be3 {[%clk 0:03:00.1]} 4... a6 {[%clk 0:02:58.9]} 5. Qd2 {[%clk 0:03:00.2]}
5... b5 {[%clk 0:02:58.3]} 6. h4 {[%clk 0:03:00.1]} 6... h5 {[%clk 0:02:57.8]}
7. Nf3 {[%clk 0:02:57]} 7... Nf6 {[%clk 0:02:55.4]} 8. Ng5 {[%clk 0:02:56.8]}
8... Nbd7 {[%clk 0:02:41.2]} 9. f3 {[%clk 0:02:48.9]} 9... Bb7 {[%clk
0:02:39.9]} 10. a4 {[%clk 0:02:44.6]} 10... c6 {[%clk 0:02:29.7]} 11. Bd3 {[%clk
0:02:41.7]} 11... O-O {[%clk 0:02:18.9]} 12. O-O {[%clk 0:02:39.3]} 12... e5
{[%clk 0:02:13.1]} 13. axb5 {[%clk 0:02:33.3]} 13... axb5 {[%clk 0:02:11.8]} 14.
dxe5 {[%clk 0:02:26]} 14... Nxe5 {[%clk 0:01:57.3]} 15. Be2 {[%clk 0:02:23.3]}
15... b4 {[%clk 0:01:37.6]} 16. Na4 {[%clk 0:02:19.7]} 16... c5 {[%clk
0:01:04.8]} 17. b3 {[%clk 0:02:19.1]} 17... Qc7 {[%clk 0:00:38.6]} 18. Rad1
{[%clk 0:02:15]} 18... Rad8 {[%clk 0:00:36.6]} 19. Qe1 {[%clk 0:02:14.4]} 19...
Nh7 {[%clk 0:00:32.1]} 20. Nxh7 {[%clk 0:02:10.8]} 20... Kxh7 {[%clk 0:00:33]}
21. Qg3 {[%clk 0:02:10.6]} 21... Bc6 {[%clk 0:00:27.8]} 22. Rd2 {[%clk
0:01:31.2]} 22... Bf6 {[%clk 0:00:17.1]} 23. Rfd1 {[%clk 0:01:28.8]} 23... Qe7
{[%clk 0:00:16.8]} 24. Bg5 {[%clk 0:01:28.8]} 24... Bxg5 {[%clk 0:00:17.3]} 25.
hxg5 {[%clk 0:01:29.7]} 25... Bxa4 {[%clk 0:00:13.5]} 26. bxa4 {[%clk
0:01:29.1]} 26... Nc6 {[%clk 0:00:14]} 27. Bc4 {[%clk 0:01:07.2]} 27... Nd4
{[%clk 0:00:14.1]} 28. a5 {[%clk 0:01:00.5]} 28... Ra8 {[%clk 0:00:12.2]} 29. a6
{[%clk 0:01:00.5]} 29... Ra7 {[%clk 0:00:12.6]} 30. Rxd4 {[%clk 0:00:51.5]}
30... cxd4 {[%clk 0:00:12.7]} 31. Rxd4 {[%clk 0:00:52.4]} 31... Rc8 {[%clk
0:00:10.7]} 32. Bd3 {[%clk 0:00:50.3]} 32... Rc6 {[%clk 0:00:09]} 33. Rd5 {[%clk
0:00:48.1]} 33... Rcxa6 {[%clk 0:00:08.2]} 34. Bxa6 {[%clk 0:00:48.6]} 34...
Rxa6 {[%clk 0:00:09.1]} 35. Kh2 {[%clk 0:00:46.5]} 35... Rc6 {[%clk 0:00:09]}
36. Qf4 {[%clk 0:00:44.9]} 36... Kg7 {[%clk 0:00:05.8]} 37. Qd2 {[%clk
0:00:42.7]} 37... Rb6 {[%clk 0:00:02.5]} 38. Qd4+ {[%clk 0:00:42.3]} 38... Kh7
{[%clk 0:00:02]} 39. Qxb6 {[%clk 0:00:42.8]} 39... Qd8 {[%clk 0:00:01.4]} 40.
Qxd8 {[%clk 0:00:42.3]} 1-0

[Event "*** Titled Tuesday Blitz"]
[Site "Chess.com"]
[Date "2020.04.14"]
[Round "6"]
[White "dusanacns"]
[Black "Jospem"]
[Result "0-1"]
[WhiteElo "2783"]
[BlackElo "2899"]
[TimeControl "180+1"]
[EndTime "11:03:26 PDT"]
[Termination "Jospem won on time"]

1. e4 {[%clk 0:03:00.9]} 1... c5 {[%clk 0:02:56.7]} 2. Nf3 {[%clk 0:03:00.8]}
2... d6 {[%clk 0:02:57.4]} 3. d4 {[%clk 0:03:01]} 3... cxd4 {[%clk 0:02:58.3]}
4. Nxd4 {[%clk 0:03:01.9]} 4... Nf6 {[%clk 0:02:59.1]} 5. Nc3 {[%clk 0:03:02.3]}
5... a6 {[%clk 0:02:59.8]} 6. a3 {[%clk 0:03:02.9]} 6... e6 {[%clk 0:02:59.5]}
7. f4 {[%clk 0:03:02]} 7... Nc6 {[%clk 0:02:59.9]} 8. Be3 {[%clk 0:03:01.5]}
8... Bd7 {[%clk 0:03:00.3]} 9. Qf3 {[%clk 0:02:52.2]} 9... h5 {[%clk 0:02:52.7]}
10. h3 {[%clk 0:02:49.1]} 10... Rc8 {[%clk 0:02:36.1]} 11. Be2 {[%clk
0:02:45.9]} 11... Be7 {[%clk 0:02:30.1]} 12. g4 {[%clk 0:02:22.2]} 12... e5
{[%clk 0:02:10.4]} 13. Nf5 {[%clk 0:01:51.4]} 13... Bxf5 {[%clk 0:02:09.9]} 14.
exf5 {[%clk 0:01:27.2]} 14... Nd4 {[%clk 0:02:05.4]} 15. Bxd4 {[%clk 0:00:47.5]}
15... exd4 {[%clk 0:02:06.3]} 16. Ne4 {[%clk 0:00:37.9]} 16... Rxc2 {[%clk
0:02:06.1]} 17. Nxf6+ {[%clk 0:00:37.3]} 17... gxf6 {[%clk 0:02:06.4]} 18. Qxb7
{[%clk 0:00:15.4]} 18... hxg4 {[%clk 0:02:03.7]} 19. hxg4 {[%clk 0:00:16.3]}
19... Rxh1+ {[%clk 0:01:55]} 20. Qxh1 {[%clk 0:00:17.2]} 20... Qb6 {[%clk
0:01:55.5]} 21. Qa8+ {[%clk 0:00:15.4]} 21... Kd7 {[%clk 0:01:46.8]} 22. Qxa6
{[%clk 0:00:15.1]} 22... Qxa6 {[%clk 0:01:23.9]} 23. Bxa6 {[%clk 0:00:16]} 23...
Rxb2 {[%clk 0:01:24.7]} 24. a4 {[%clk 0:00:14.7]} 24... d5 {[%clk 0:01:18.7]}
25. a5 {[%clk 0:00:10.7]} 25... Bb4+ {[%clk 0:01:04.2]} 26. Kf1 {[%clk
0:00:10.1]} 26... Kc7 {[%clk 0:01:00.4]} 27. Be2 {[%clk 0:00:08.7]} 27... Kb8
{[%clk 0:00:57.1]} 28. a6 {[%clk 0:00:06.4]} 28... Ka7 {[%clk 0:00:55.7]} 29.
Rc1 {[%clk 0:00:05.1]} 29... Bc3 {[%clk 0:00:55.1]} 30. Rd1 {[%clk 0:00:02.2]}
30... Bd2 {[%clk 0:00:46.1]} 31. g5 {[%clk 0:00:01.4]} 31... fxg5 {[%clk
0:00:34.4]} 32. fxg5 {[%clk 0:00:02.3]} 32... d3 {[%clk 0:00:24.1]} 33. Bxd3
{[%clk 0:00:01.5]} 33... Bxg5 {[%clk 0:00:24.9]} 34. Be2 {[%clk 0:00:02]} 34...
Bd2 {[%clk 0:00:24.7]} 0-1

[Event "*** Titled Tuesday Blitz"]
[Site "Chess.com"]
[Date "2020.04.14"]
[Round "6"]
[White "LittlePeasant"]
[Black "124chess"]
[Result "1-0"]
[WhiteElo "2826"]
[BlackElo "2631"]
[TimeControl "180+1"]
[EndTime "11:03:27 PDT"]
[Termination "LittlePeasant won by resignation"]

1. d4 {[%clk 0:03:00.9]} 1... g6 {[%clk 0:02:57.9]} 2. Nf3 {[%clk 0:03:00.2]}
2... Bg7 {[%clk 0:02:58.4]} 3. g3 {[%clk 0:03:00.9]} 3... c5 {[%clk 0:02:58.1]}
4. Bg2 {[%clk 0:03:00.6]} 4... cxd4 {[%clk 0:02:57.9]} 5. Nxd4 {[%clk
0:03:01.5]} 5... Nc6 {[%clk 0:02:58.5]} 6. e3 {[%clk 0:03:01.2]} 6... Nf6 {[%clk
0:02:56.8]} 7. O-O {[%clk 0:03:01.2]} 7... O-O {[%clk 0:02:57.1]} 8. c4 {[%clk
0:03:01.9]} 8... d5 {[%clk 0:02:52.3]} 9. cxd5 {[%clk 0:02:48.3]} 9... Nxd5
{[%clk 0:02:51.8]} 10. Nc3 {[%clk 0:02:49.2]} 10... Nxc3 {[%clk 0:02:44.3]} 11.
bxc3 {[%clk 0:02:50.1]} 11... Na5 {[%clk 0:02:42.3]} 12. Ba3 {[%clk 0:02:40.5]}
12... Nc4 {[%clk 0:02:39]} 13. Qa4 {[%clk 0:02:37.2]} 13... Nxa3 {[%clk
0:02:36.9]} 14. Qxa3 {[%clk 0:02:38.1]} 14... Qc7 {[%clk 0:02:17.8]} 15. Rab1
{[%clk 0:02:35.3]} 15... a6 {[%clk 0:01:51.5]} 16. Rb3 {[%clk 0:02:01.2]} 16...
Rb8 {[%clk 0:01:50.7]} 17. Rfb1 {[%clk 0:02:00.9]} 17... Bf6 {[%clk 0:01:43.5]}
18. Nc6 {[%clk 0:01:44.2]} 18... Ra8 {[%clk 0:01:40.4]} 19. Na5 {[%clk
0:01:44.3]} 19... Be6 {[%clk 0:01:31.4]} 20. Rxb7 {[%clk 0:01:31.3]} 20... Qxc3
{[%clk 0:01:29.6]} 21. Qxc3 {[%clk 0:01:30.9]} 21... Bxc3 {[%clk 0:01:30.5]} 22.
Nc6 {[%clk 0:01:31.7]} 22... Bxa2 {[%clk 0:01:16.1]} 23. Nxe7+ {[%clk 0:01:20]}
23... Kh8 {[%clk 0:01:15.5]} 24. Rc1 {[%clk 0:01:20.9]} 24... Bg7 {[%clk
0:01:12.1]} 25. Rbc7 {[%clk 0:01:03.7]} 25... Rab8 {[%clk 0:01:07.1]} 26. Ra7
{[%clk 0:01:03.3]} 26... Rb6 {[%clk 0:00:42.8]} 27. Bd5 {[%clk 0:00:54.9]} 27...
Bxd5 {[%clk 0:00:32.6]} 28. Nxd5 {[%clk 0:00:55.8]} 28... Rd6 {[%clk 0:00:28.6]}
29. e4 {[%clk 0:00:56.4]} 29... Bd4 {[%clk 0:00:23.9]} 30. Rb7 {[%clk 0:00:50]}
30... a5 {[%clk 0:00:22]} 31. Rc4 {[%clk 0:00:49.6]} 31... Bg7 {[%clk
0:00:19.3]} 32. Ra7 {[%clk 0:00:45.1]} 32... Rfd8 {[%clk 0:00:07.8]} 33. Rxf7
{[%clk 0:00:33.6]} 33... Kg8 {[%clk 0:00:02.9]} 34. Ra7 {[%clk 0:00:25.8]} 34...
Ra8 {[%clk 0:00:01.6]} 35. Rxa8+ {[%clk 0:00:25.3]} 1-0

[Event "*** Titled Tuesday Blitz"]
[Site "Chess.com"]
[Date "2020.04.14"]
[Round "6"]
[White "mirochka"]
[Black "Fy_Rakotomaharo"]
[Result "0-1"]
[WhiteElo "2197"]
[BlackElo "2541"]
[TimeControl "180+1"]
[EndTime "11:03:27 PDT"]
[Termination "Fy_Rakotomaharo won on time"]

1. e4 {[%clk 0:03:00.9]} 1... e5 {[%clk 0:02:59.2]} 2. Nf3 {[%clk 0:02:59.5]}
2... Nc6 {[%clk 0:02:59.1]} 3. d4 {[%clk 0:02:59.5]} 3... exd4 {[%clk
0:02:58.6]} 4. c3 {[%clk 0:02:58.2]} 4... d5 {[%clk 0:02:57.8]} 5. exd5 {[%clk
0:02:57.7]} 5... Qxd5 {[%clk 0:02:58.7]} 6. cxd4 {[%clk 0:02:58]} 6... Bb4+
{[%clk 0:02:56.6]} 7. Nc3 {[%clk 0:02:58.3]} 7... Nge7 {[%clk 0:02:53.5]} 8. Be2
{[%clk 0:02:57.8]} 8... O-O {[%clk 0:02:52.5]} 9. O-O {[%clk 0:02:57]} 9... Bxc3
{[%clk 0:02:52.6]} 10. bxc3 {[%clk 0:02:55.9]} 10... Bf5 {[%clk 0:02:46.9]} 11.
Bf4 {[%clk 0:02:53.4]} 11... Qd7 {[%clk 0:02:43.9]} 12. Bb5 {[%clk 0:02:42.4]}
12... f6 {[%clk 0:02:37.2]} 13. Re1 {[%clk 0:02:36]} 13... Nd5 {[%clk
0:02:30.5]} 14. Bc4 {[%clk 0:02:24.6]} 14... Kh8 {[%clk 0:02:16]} 15. Bxd5
{[%clk 0:02:14.8]} 15... Qxd5 {[%clk 0:02:16.9]} 16. Bxc7 {[%clk 0:02:14.8]}
16... Rac8 {[%clk 0:02:17.2]} 17. Bg3 {[%clk 0:02:13.2]} 17... Na5 {[%clk
0:02:17]} 18. Re3 {[%clk 0:01:45.9]} 18... Nc4 {[%clk 0:02:02.3]} 19. Re7 {[%clk
0:01:41.9]} 19... Nb6 {[%clk 0:01:25.3]} 20. Qb3 {[%clk 0:01:18.1]} 20... Be4
{[%clk 0:01:17.8]} 21. Qxd5 {[%clk 0:00:35.8]} 21... Bxd5 {[%clk 0:01:16.6]} 22.
Rc7 {[%clk 0:00:30.8]} 22... Bxf3 {[%clk 0:01:06.6]} 23. gxf3 {[%clk 0:00:29.4]}
23... Rxc7 {[%clk 0:01:06.6]} 24. Bxc7 {[%clk 0:00:29.8]} 24... Nd5 {[%clk
0:01:07.5]} 25. Ba5 {[%clk 0:00:25.5]} 25... Rc8 {[%clk 0:00:58.9]} 26. Re1
{[%clk 0:00:16.8]} 26... Kg8 {[%clk 0:00:46.9]} 27. Bb4 {[%clk 0:00:12.9]} 27...
b6 {[%clk 0:00:42.5]} 28. Kf1 {[%clk 0:00:09.4]} 28... a5 {[%clk 0:00:41.3]} 29.
Bd6 {[%clk 0:00:08.6]} 29... Rxc3 {[%clk 0:00:40.5]} 30. Re8+ {[%clk 0:00:06.2]}
30... Kf7 {[%clk 0:00:37]} 31. Rb8 {[%clk 0:00:03]} 31... Rxf3 {[%clk
0:00:27.3]} 0-1